[Event "*** Titled Tuesday Blitz"]
[Site "Chess.com"]
[Date "2019.10.01"]
[Round "4"]
[White "albano87"]
[Black "dolynachess"]
[Result "1/2-1/2"]
[WhiteElo "2031"]
[BlackElo "2411"]
[TimeControl "180+2"]
[EndTime "13:58:51 PDT"]
[Termination "Game drawn - insufficient material"]

1. d4 {[%clk 0:03:01.5]} 1... Nf6 {[%clk 0:03:00]} 2. Nf3 {[%clk 0:03:02.4]}
2... c5 {[%clk 0:03:01.9]} 3. e3 {[%clk 0:02:59.9]} 3... g6 {[%clk 0:03:01.2]}
4. Be2 {[%clk 0:03:00.6]} 4... Bg7 {[%clk 0:03:02.6]} 5. O-O {[%clk 0:03:02.3]}
5... O-O {[%clk 0:03:04.5]} 6. dxc5 {[%clk 0:03:03.8]} 6... Qa5 {[%clk
0:03:02.4]} 7. a3 {[%clk 0:03:05.5]} 7... Qxc5 {[%clk 0:03:02.4]} 8. b4 {[%clk
0:03:07.2]} 8... Qc7 {[%clk 0:03:02.3]} 9. Bb2 {[%clk 0:03:08.7]} 9... b6 {[%clk
0:02:57.8]} 10. c4 {[%clk 0:03:08.4]} 10... Bb7 {[%clk 0:02:58.7]} 11. Nc3
{[%clk 0:03:10.1]} 11... a6 {[%clk 0:02:56.5]} 12. Rc1 {[%clk 0:03:11.4]} 12...
d6 {[%clk 0:02:46.7]} 13. Nd4 {[%clk 0:03:05.7]} 13... Nbd7 {[%clk 0:02:21]} 14.
Nd5 {[%clk 0:03:02.5]} 14... Qd8 {[%clk 0:02:17.7]} 15. Bf3 {[%clk 0:03:02.2]}
15... Rb8 {[%clk 0:02:13.3]} 16. Qa4 {[%clk 0:02:52.5]} 16... b5 {[%clk
0:01:48.9]} 17. Qb3 {[%clk 0:02:38.1]} 17... bxc4 {[%clk 0:01:47.3]} 18. Nxf6+
{[%clk 0:02:37.6]} 18... Bxf6 {[%clk 0:01:46.9]} 19. Rxc4 {[%clk 0:02:31.2]}
19... Ne5 {[%clk 0:01:30.3]} 20. Rc2 {[%clk 0:02:25.7]} 20... Nxf3+ {[%clk
0:01:29.4]} 21. Nxf3 {[%clk 0:02:26.5]} 21... Bxb2 {[%clk 0:01:23.8]} 22. Qxb2
{[%clk 0:02:23.9]} 22... Qd7 {[%clk 0:01:21]} 23. Nd4 {[%clk 0:02:16.1]} 23...
Qg4 {[%clk 0:01:04.4]} 24. Nc6 {[%clk 0:02:13.6]} 24... Qe4 {[%clk 0:00:55.7]}
25. Rc4 {[%clk 0:02:05.1]} 25... Qe6 {[%clk 0:00:46.5]} 26. Rfc1 {[%clk
0:02:01.7]} 26... Rbc8 {[%clk 0:00:36.8]} 27. Qc3 {[%clk 0:01:53.1]} 27... Rc7
{[%clk 0:00:31.6]} 28. a4 {[%clk 0:01:47.8]} 28... Qd5 {[%clk 0:00:20.2]} 29. e4
{[%clk 0:01:33]} 29... Qg5 {[%clk 0:00:18.4]} 30. f3 {[%clk 0:01:17.2]} 30... h5
{[%clk 0:00:17.6]} 31. Kf2 {[%clk 0:01:08.4]} 31... Qh4+ {[%clk 0:00:16.2]} 32.
Kg1 {[%clk 0:01:08.8]} 32... Qg5 {[%clk 0:00:17.6]} 33. Rc2 {[%clk 0:01:06.3]}
33... Re8 {[%clk 0:00:18.7]} 34. Qe1 {[%clk 0:00:53.1]} 34... h4 {[%clk
0:00:18.9]} 35. Qc1 {[%clk 0:00:52.7]} 35... Qf6 {[%clk 0:00:13.1]} 36. b5
{[%clk 0:00:53]} 36... axb5 {[%clk 0:00:13]} 37. axb5 {[%clk 0:00:54.1]} 37...
Kg7 {[%clk 0:00:13.2]} 38. b6 {[%clk 0:00:53.6]} 38... Rcc8 {[%clk 0:00:11.7]}
39. Nb4 {[%clk 0:00:41.8]} 39... Rxc4 {[%clk 0:00:09.7]} 40. Rxc4 {[%clk
0:00:42.8]} 40... Ra8 {[%clk 0:00:11.1]} 41. Qc3 {[%clk 0:00:44]} 41... Ra1+
{[%clk 0:00:09.2]} 42. Kf2 {[%clk 0:00:44.3]} 42... e5 {[%clk 0:00:09.9]} 43.
Qxa1 {[%clk 0:00:39.6]} 43... Qg5 {[%clk 0:00:10.7]} 44. Qc1 {[%clk 0:00:38.9]}
44... Qd8 {[%clk 0:00:07.9]} 45. Nd5 {[%clk 0:00:40]} 45... Qa8 {[%clk
0:00:06.1]} 46. Rc7 {[%clk 0:00:37.8]} 46... Qa6 {[%clk 0:00:05.4]} 47. Qb2
{[%clk 0:00:29]} 47... Kh6 {[%clk 0:00:04.3]} 48. f4 {[%clk 0:00:30.1]} 48... f6
{[%clk 0:00:03.6]} 49. fxe5 {[%clk 0:00:31.4]} 49... dxe5 {[%clk 0:00:05.2]} 50.
Qd2+ {[%clk 0:00:31.9]} 50... g5 {[%clk 0:00:06.5]} 51. Nxf6 {[%clk 0:00:32]}
51... Qxb6+ {[%clk 0:00:07.5]} 52. Kf3 {[%clk 0:00:16.5]} 52... Qxc7 {[%clk
0:00:08.3]} 53. Nd5 {[%clk 0:00:16.7]} 53... Qf7+ {[%clk 0:00:07.9]} 54. Ke2
{[%clk 0:00:17.9]} 54... Bxd5 {[%clk 0:00:06.6]} 55. Qxd5 {[%clk 0:00:18.9]}
55... Qf4 {[%clk 0:00:06.5]} 56. Qe6+ {[%clk 0:00:19.3]} 56... Kh5 {[%clk
0:00:07.5]} 57. Qe8+ {[%clk 0:00:19.8]} 57... Kh6 {[%clk 0:00:08.1]} 58. Qe6+
{[%clk 0:00:18.5]} 58... Kh5 {[%clk 0:00:09.3]} 59. Qe8+ {[%clk 0:00:13.6]}
59... Kh6 {[%clk 0:00:10.7]} 60. Qh8+ {[%clk 0:00:14.9]} 60... Kg6 {[%clk
0:00:11.3]} 61. Qg8+ {[%clk 0:00:16.5]} 61... Kf6 {[%clk 0:00:12.4]} 62. Qf8+
{[%clk 0:00:17.7]} 62... Ke6 {[%clk 0:00:13.4]} 63. Qxf4 {[%clk 0:00:17.1]}
63... exf4 {[%clk 0:00:10.6]} 64. Kf3 {[%clk 0:00:18.5]} 64... Ke5 {[%clk
0:00:10]} 65. h3 {[%clk 0:00:19.9]} 65... Kd4 {[%clk 0:00:10.1]} 66. Kg4 {[%clk
0:00:21.6]} 66... Kxe4 {[%clk 0:00:11.2]} 67. Kxg5 {[%clk 0:00:23.4]} 67... f3
{[%clk 0:00:11.4]} 68. gxf3+ {[%clk 0:00:24.5]} 68... Kxf3 {[%clk 0:00:13.3]}
69. Kxh4 {[%clk 0:00:25.9]} 69... Kf4 {[%clk 0:00:15]} 70. Kh5 {[%clk
0:00:27.8]} 70... Kf5 {[%clk 0:00:16.4]} 71. h4 {[%clk 0:00:29.3]} 71... Kf6
{[%clk 0:00:17.4]} 72. Kh6 {[%clk 0:00:30.5]} 72... Kf7 {[%clk 0:00:18.8]} 73.
Kg5 {[%clk 0:00:32.3]} 73... Kg7 {[%clk 0:00:19.8]} 74. h5 {[%clk 0:00:33]}
74... Kh8 {[%clk 0:00:21.7]} 75. h6 {[%clk 0:00:34.9]} 75... Kh7 {[%clk
0:00:23.6]} 76. Kh5 {[%clk 0:00:36.5]} 76... Kh8 {[%clk 0:00:25.5]} 77. Kg6
{[%clk 0:00:38.2]} 77... Kg8 {[%clk 0:00:26.4]} 78. h7+ {[%clk 0:00:39.4]} 78...
Kh8 {[%clk 0:00:28.3]} 79. Kf7 {[%clk 0:00:40.1]} 79... Kxh7 {[%clk 0:00:28.8]}
1/2-1/2

[Event "*** Titled Tuesday Blitz"]
[Site "Chess.com"]
[Date "2019.10.01"]
[Round "4"]
[White "Perecke"]
[Black "ChessBitl"]
[Result "1/2-1/2"]
[WhiteElo "2109"]
[BlackElo "2304"]
[TimeControl "180+2"]
[EndTime "14:00:29 PDT"]
[Termination "Game drawn - insufficient material"]

1. e4 {[%clk 0:03:01.9]} 1... c5 {[%clk 0:03:00.5]} 2. Nf3 {[%clk 0:03:00.2]}
2... Nc6 {[%clk 0:03:02]} 3. d4 {[%clk 0:03:00]} 3... cxd4 {[%clk 0:03:02.9]} 4.
Nxd4 {[%clk 0:03:01.9]} 4... g6 {[%clk 0:03:04.5]} 5. Nc3 {[%clk 0:03:00.7]}
5... Bg7 {[%clk 0:03:04.8]} 6. Be3 {[%clk 0:03:01.9]} 6... Nf6 {[%clk
0:03:06.2]} 7. f3 {[%clk 0:02:58.5]} 7... O-O {[%clk 0:03:06.7]} 8. Qd2 {[%clk
0:02:58]} 8... d5 {[%clk 0:03:07.4]} 9. exd5 {[%clk 0:02:44.8]} 9... Nxd5 {[%clk
0:03:07.7]} 10. Nxc6 {[%clk 0:02:38.9]} 10... bxc6 {[%clk 0:03:09.2]} 11. Nxd5
{[%clk 0:02:39.9]} 11... cxd5 {[%clk 0:03:10]} 12. c3 {[%clk 0:02:40.3]} 12...
e5 {[%clk 0:03:05.9]} 13. Bd3 {[%clk 0:02:38]} 13... Be6 {[%clk 0:03:05.8]} 14.
O-O {[%clk 0:02:39]} 14... a5 {[%clk 0:03:07]} 15. Rad1 {[%clk 0:02:39.9]} 15...
a4 {[%clk 0:03:05.3]} 16. Bb1 {[%clk 0:02:39.3]} 16... Qa5 {[%clk 0:03:02.8]}
17. f4 {[%clk 0:02:39.8]} 17... f6 {[%clk 0:02:54.1]} 18. fxe5 {[%clk
0:02:33.8]} 18... fxe5 {[%clk 0:02:54.4]} 19. Bh6 {[%clk 0:02:32]} 19... Qb6+
{[%clk 0:02:41]} 20. Kh1 {[%clk 0:02:28.5]} 20... Rxf1+ {[%clk 0:02:24.7]} 21.
Rxf1 {[%clk 0:02:27.5]} 21... Rf8 {[%clk 0:02:23.4]} 22. Rxf8+ {[%clk
0:02:27.9]} 22... Bxf8 {[%clk 0:02:17.6]} 23. Bxf8 {[%clk 0:02:19.6]} 23... Kxf8
{[%clk 0:02:18.4]} 24. Qg5 {[%clk 0:01:52.7]} 24... Qxb2 {[%clk 0:02:14.8]} 25.
Qf6+ {[%clk 0:01:50.7]} 25... Bf7 {[%clk 0:02:14.1]} 26. Qh8+ {[%clk 0:01:49.9]}
26... Ke7 {[%clk 0:02:12.5]} 27. Qxe5+ {[%clk 0:01:50.9]} 27... Kd7 {[%clk
0:02:12.7]} 28. Qe1 {[%clk 0:01:44.9]} 28... a3 {[%clk 0:02:12.1]} 29. Qf1
{[%clk 0:01:39.6]} 29... Be6 {[%clk 0:02:10.8]} 30. Qe1 {[%clk 0:01:20.4]} 30...
Kd6 {[%clk 0:02:03.9]} 31. h3 {[%clk 0:01:10.1]} 31... Bf5 {[%clk 0:01:53.5]}
32. Bxf5 {[%clk 0:01:07]} 32... gxf5 {[%clk 0:01:55]} 33. Qg3+ {[%clk
0:01:08.1]} 33... Kc6 {[%clk 0:01:50.9]} 34. Qe5 {[%clk 0:00:37.5]} 34... Qxa2
{[%clk 0:01:43.4]} 35. Qe8+ {[%clk 0:00:30.7]} 35... Kd6 {[%clk 0:01:41.4]} 36.
Qd8+ {[%clk 0:00:24.6]} 36... Ke5 {[%clk 0:01:35.9]} 37. Qe7+ {[%clk 0:00:24.6]}
37... Kf4 {[%clk 0:01:37.1]} 38. Qd6+ {[%clk 0:00:07]} 38... Ke3 {[%clk
0:01:33.1]} 39. Qe5+ {[%clk 0:00:04.7]} 39... Kd2 {[%clk 0:01:23.3]} 40. Qf4+
{[%clk 0:00:02.8]} 40... Kd1 {[%clk 0:01:14.8]} 41. Qf1+ {[%clk 0:00:02.3]}
41... Kc2 {[%clk 0:01:15.1]} 42. Qxf5+ {[%clk 0:00:03.7]} 42... Kxc3 {[%clk
0:01:16.1]} 43. Qf3+ {[%clk 0:00:04.9]} 43... Kb4 {[%clk 0:01:16.5]} 44. Qf8+
{[%clk 0:00:06.1]} 44... Ka4 {[%clk 0:01:15.5]} 45. Qa8+ {[%clk 0:00:06.9]}
45... Kb4 {[%clk 0:01:15]} 46. Qf8+ {[%clk 0:00:07.6]} 46... Kb5 {[%clk
0:01:12.5]} 47. Qb8+ {[%clk 0:00:07.9]} 47... Kc4 {[%clk 0:01:12.3]} 48. Qc8+
{[%clk 0:00:05.8]} 48... Kd3 {[%clk 0:01:06.3]} 49. Qf5+ {[%clk 0:00:05.9]}
49... Kc3 {[%clk 0:01:04.3]} 50. Qf6+ {[%clk 0:00:05.1]} 50... Kc2 {[%clk
0:01:02.8]} 51. Qf2+ {[%clk 0:00:05.7]} 51... Kb1 {[%clk 0:01:03.8]} 52. Qe1+
{[%clk 0:00:06.9]} 52... Kb2 {[%clk 0:01:04.4]} 53. Qd2+ {[%clk 0:00:08]} 53...
Ka1 {[%clk 0:01:03.5]} 54. Qd4+ {[%clk 0:00:07.7]} 54... Qb2 {[%clk 0:01:01.3]}
55. Qxd5 {[%clk 0:00:08.9]} 55... Qc1+ {[%clk 0:00:58.3]} 56. Kh2 {[%clk
0:00:09.6]} 56... Qc7+ {[%clk 0:00:58.3]} 57. Kh1 {[%clk 0:00:07]} 57... Qc3
{[%clk 0:00:57.1]} 58. Qd1+ {[%clk 0:00:05.8]} 58... Kb2 {[%clk 0:00:57.8]} 59.
Qe2+ {[%clk 0:00:06.7]} 59... Qc2 {[%clk 0:00:58.2]} 60. Qb5+ {[%clk 0:00:07.7]}
60... Kc1 {[%clk 0:00:59.3]} 61. Qg5+ {[%clk 0:00:07]} 61... Kb1 {[%clk
0:00:59.7]} 62. Qb5+ {[%clk 0:00:06.9]} 62... Qb2 {[%clk 0:01:00.7]} 63. Qf5+
{[%clk 0:00:07.6]} 63... Qc2 {[%clk 0:01:01.9]} 64. Qb5+ {[%clk 0:00:08]} 64...
Kc1 {[%clk 0:01:00.1]} 65. Qg5+ {[%clk 0:00:08.3]} 65... Kb2 {[%clk 0:00:56.8]}
66. Qe5+ {[%clk 0:00:07.5]} 66... Qc3 {[%clk 0:00:57.4]} 67. Qe2+ {[%clk
0:00:07.3]} 67... Kc1 {[%clk 0:00:49.9]} 68. Qf1+ {[%clk 0:00:06.2]} 68... Kc2
{[%clk 0:00:49.5]} 69. Qf5+ {[%clk 0:00:07.1]} 69... Qd3 {[%clk 0:00:47.8]} 70.
Qc5+ {[%clk 0:00:07.3]} 70... Kb1 {[%clk 0:00:41.4]} 71. Qb4+ {[%clk 0:00:06.3]}
71... Ka1 {[%clk 0:00:36.2]} 72. Kh2 {[%clk 0:00:06.1]} 72... a2 {[%clk
0:00:33.4]} 73. Qe1+ {[%clk 0:00:06.2]} 73... Kb2 {[%clk 0:00:33.9]} 74. Qb4+
{[%clk 0:00:07.2]} 74... Kc2 {[%clk 0:00:33.4]} 75. Qc5+ {[%clk 0:00:04.2]}
75... Qc3 {[%clk 0:00:34]} 76. Qf5+ {[%clk 0:00:04.6]} 76... Kb3 {[%clk
0:00:35]} 77. Qb5+ {[%clk 0:00:05.2]} 77... Qb4 {[%clk 0:00:34.8]} 78. Qd3+
{[%clk 0:00:06.3]} 78... Kb2 {[%clk 0:00:31.1]} 79. Qe2+ {[%clk 0:00:06.1]}
79... Kc3 {[%clk 0:00:31]} 80. Qe5+ {[%clk 0:00:05.3]} 80... Kb3 {[%clk
0:00:30.9]} 81. Qe6+ {[%clk 0:00:05.3]} 81... Qc4 {[%clk 0:00:27.9]} 82. Qe3+
{[%clk 0:00:06]} 82... Ka4 {[%clk 0:00:26.1]} 83. Qa7+ {[%clk 0:00:06.6]} 83...
Kb4 {[%clk 0:00:27.4]} 84. Qb6+ {[%clk 0:00:06.7]} 84... Qb5 {[%clk 0:00:25.1]}
85. Qd4+ {[%clk 0:00:07.9]} 85... Ka5 {[%clk 0:00:20.8]} 86. Qd2+ {[%clk
0:00:08.9]} 86... Kb6 {[%clk 0:00:19.6]} 87. Qxa2 {[%clk 0:00:09.6]} 87... Qe5+
{[%clk 0:00:20.4]} 88. g3 {[%clk 0:00:10.2]} 88... h5 {[%clk 0:00:20.1]} 89.
Qb3+ {[%clk 0:00:08.6]} 89... Kc5 {[%clk 0:00:20.8]} 90. Qc2+ {[%clk 0:00:09.3]}
90... Kd6 {[%clk 0:00:20.3]} 91. Qd3+ {[%clk 0:00:09.6]} 91... Ke7 {[%clk
0:00:20.8]} 92. Qh7+ {[%clk 0:00:09.9]} 92... Ke6 {[%clk 0:00:19.9]} 93. Qg6+
{[%clk 0:00:11.1]} 93... Kd5 {[%clk 0:00:19.8]} 94. h4 {[%clk 0:00:12.4]} 94...
Qe2+ {[%clk 0:00:15.6]} 95. Kh3 {[%clk 0:00:13.4]} 95... Qe6+ {[%clk 0:00:14.8]}
96. Qxe6+ {[%clk 0:00:13.7]} 96... Kxe6 {[%clk 0:00:16.1]} 97. Kg2 {[%clk
0:00:14.6]} 97... Kf5 {[%clk 0:00:16.9]} 98. Kf3 {[%clk 0:00:15.6]} 98... Ke5
{[%clk 0:00:17.8]} 99. Ke3 {[%clk 0:00:15.1]} 99... Kf5 {[%clk 0:00:18.7]} 100.
Kf3 {[%clk 0:00:14.5]} 100... Ke5 {[%clk 0:00:19.7]} 101. g4 {[%clk 0:00:15.6]}
101... hxg4+ {[%clk 0:00:20.3]} 102. Kxg4 {[%clk 0:00:17.5]} 102... Kf6 {[%clk
0:00:21.7]} 103. h5 {[%clk 0:00:19.4]} 103... Kg7 {[%clk 0:00:22.8]} 104. h6+
{[%clk 0:00:21.3]} 104... Kxh6 {[%clk 0:00:23.8]} 1/2-1/2

[Event "*** Titled Tuesday Blitz"]
[Site "Chess.com"]
[Date "2019.10.01"]
[Round "4"]
[White "TrickyTrapChess"]
[Black "WPWPWP-2015"]
[Result "0-1"]
[WhiteElo "2245"]
[BlackElo "2474"]
[TimeControl "180+2"]
[EndTime "14:00:51 PDT"]
[Termination "WPWPWP-2015 won by checkmate"]

1. c4 {[%clk 0:03:01.9]} 1... e5 {[%clk 0:03:00.3]} 2. Nc3 {[%clk 0:03:02.2]}
2... Nf6 {[%clk 0:03:01.5]} 3. g3 {[%clk 0:03:02.3]} 3... Bb4 {[%clk 0:03:01.5]}
4. Bg2 {[%clk 0:03:02.5]} 4... O-O {[%clk 0:03:02.1]} 5. Nf3 {[%clk 0:02:57.4]}
5... Re8 {[%clk 0:03:02.4]} 6. O-O {[%clk 0:02:56.6]} 6... Nc6 {[%clk 0:03:03]}
7. Nd5 {[%clk 0:02:55.1]} 7... Bf8 {[%clk 0:03:01.4]} 8. d4 {[%clk 0:02:54.7]}
8... exd4 {[%clk 0:02:31.7]} 9. Bg5 {[%clk 0:02:52.4]} 9... Be7 {[%clk
0:02:30.5]} 10. Nxe7+ {[%clk 0:02:49.8]} 10... Qxe7 {[%clk 0:02:31.1]} 11. Nxd4
{[%clk 0:02:51.2]} 11... Nxd4 {[%clk 0:02:28.3]} 12. Qxd4 {[%clk 0:02:51.3]}
12... d6 {[%clk 0:02:29.2]} 13. Rfe1 {[%clk 0:02:44.2]} 13... Qe5 {[%clk
0:02:23.5]} 14. Bxf6 {[%clk 0:02:42.1]} 14... Qxf6 {[%clk 0:02:22]} 15. Qxf6
{[%clk 0:02:42.4]} 15... gxf6 {[%clk 0:02:23.1]} 16. c5 {[%clk 0:02:38]} 16...
dxc5 {[%clk 0:02:23.3]} 17. Rac1 {[%clk 0:02:37.7]} 17... c6 {[%clk 0:02:13.8]}
18. Rxc5 {[%clk 0:02:37.4]} 18... Be6 {[%clk 0:02:13.2]} 19. a3 {[%clk
0:02:32.2]} 19... Rad8 {[%clk 0:02:12.3]} 20. b4 {[%clk 0:02:29.1]} 20... a6
{[%clk 0:02:11.8]} 21. a4 {[%clk 0:02:29.4]} 21... Bb3 {[%clk 0:02:07.8]} 22. b5
{[%clk 0:02:29.7]} 22... Bxa4 {[%clk 0:00:35.2]} 23. bxa6 {[%clk 0:02:24.7]}
23... bxa6 {[%clk 0:00:35.4]} 24. Bxc6 {[%clk 0:02:23.2]} 24... Bxc6 {[%clk
0:00:35.9]} 25. Rxc6 {[%clk 0:02:24]} 25... Re6 {[%clk 0:00:37.1]} 26. Rc7
{[%clk 0:02:06.1]} 26... Ra8 {[%clk 0:00:35.5]} 27. e3 {[%clk 0:02:06.6]} 27...
a5 {[%clk 0:00:35.8]} 28. Ra1 {[%clk 0:02:08]} 28... a4 {[%clk 0:00:36.7]} 29.
Ra3 {[%clk 0:02:09.4]} 29... Kg7 {[%clk 0:00:32.3]} 30. Kf1 {[%clk 0:02:07.5]}
30... f5 {[%clk 0:00:33]} 31. Ke2 {[%clk 0:02:08.6]} 31... Rb6 {[%clk
0:00:33.3]} 32. Rc4 {[%clk 0:02:06.4]} 32... Rba6 {[%clk 0:00:33.5]} 33. Kf3
{[%clk 0:01:59.5]} 33... Ra5 {[%clk 0:00:34.1]} 34. e4 {[%clk 0:01:58.7]} 34...
fxe4+ {[%clk 0:00:31.3]} 35. Rxe4 {[%clk 0:01:59]} 35... R8a6 {[%clk 0:00:32.2]}
36. g4 {[%clk 0:01:58.1]} 36... Kg6 {[%clk 0:00:32.6]} 37. Kg3 {[%clk
0:01:57.1]} 37... h5 {[%clk 0:00:27.9]} 38. h3 {[%clk 0:01:54.6]} 38... hxg4
{[%clk 0:00:25.9]} 39. hxg4 {[%clk 0:01:53.5]} 39... Ra8 {[%clk 0:00:22.1]} 40.
f4 {[%clk 0:01:53.2]} 40... R8a6 {[%clk 0:00:22.9]} 41. Rb4 {[%clk 0:01:50.8]}
41... Kf6 {[%clk 0:00:20.2]} 42. Rb8 {[%clk 0:01:48.2]} 42... Rc6 {[%clk
0:00:17.9]} 43. Rh8 {[%clk 0:01:45.7]} 43... Kg7 {[%clk 0:00:16.8]} 44. Rd8
{[%clk 0:01:37.2]} 44... Rc4 {[%clk 0:00:17.3]} 45. g5 {[%clk 0:01:37.3]} 45...
Kg6 {[%clk 0:00:17.4]} 46. Rd6+ {[%clk 0:01:34.7]} 46... Kg7 {[%clk 0:00:17.3]}
47. Kg4 {[%clk 0:01:33.9]} 47... Rb4 {[%clk 0:00:18.1]} 48. Rd8 {[%clk
0:01:24.5]} 48... Rc4 {[%clk 0:00:15.1]} 49. Rh3 {[%clk 0:01:22.7]} 49... f5+
{[%clk 0:00:10.1]} 50. Kh5 {[%clk 0:00:57.8]} 50... a3 {[%clk 0:00:08.9]} 51.
Rb3 {[%clk 0:00:58.6]} 51... Rc7 {[%clk 0:00:06.7]} 52. Rd1 {[%clk 0:00:55]}
52... a2 {[%clk 0:00:06.8]} 53. Ra1 {[%clk 0:00:55.8]} 53... Rc2 {[%clk
0:00:06.4]} 54. Rb7+ {[%clk 0:00:54.5]} 54... Kf8 {[%clk 0:00:06.9]} 55. Kg6
{[%clk 0:00:55.5]} 55... Rc6+ {[%clk 0:00:06.9]} 56. Kh5 {[%clk 0:00:56]} 56...
Ra4 {[%clk 0:00:04.9]} 57. g6 {[%clk 0:00:48.7]} 57... Ra3 {[%clk 0:00:03.8]}
58. Kg5 {[%clk 0:00:46.3]} 58... Rg3+ {[%clk 0:00:03.5]} 59. Kxf5 {[%clk
0:00:46.5]} 59... Rgxg6 {[%clk 0:00:04.5]} 60. Rxa2 {[%clk 0:00:44.4]} 60...
Rgf6+ {[%clk 0:00:05.7]} 61. Kg5 {[%clk 0:00:44.9]} 61... Rg6+ {[%clk 0:00:07]}
62. Kf5 {[%clk 0:00:42.4]} 62... Rgf6+ {[%clk 0:00:08.2]} 63. Ke4 {[%clk
0:00:43.8]} 63... Rc4+ {[%clk 0:00:08.4]} 64. Ke5 {[%clk 0:00:44.4]} 64... Rf7
{[%clk 0:00:06.9]} 65. Ra8+ {[%clk 0:00:43]} 65... Kg7 {[%clk 0:00:07.8]} 66.
Rbb8 {[%clk 0:00:28.1]} 66... Rfxf4 {[%clk 0:00:04.2]} 67. Rg8+ {[%clk
0:00:28.8]} 67... Kh7 {[%clk 0:00:04.5]} 68. Rh8+ {[%clk 0:00:29.8]} 68... Kg7
{[%clk 0:00:05.8]} 69. Rag8+ {[%clk 0:00:30.7]} 69... Kf7 {[%clk 0:00:07.1]} 70.
Rf8+ {[%clk 0:00:27.6]} 70... Kg7 {[%clk 0:00:08.1]} 71. Rhg8+ {[%clk
0:00:23.7]} 71... Kh7 {[%clk 0:00:09.2]} 72. Rh8+ {[%clk 0:00:16.9]} 72... Kg7
{[%clk 0:00:10.4]} 73. Ra8 {[%clk 0:00:18]} 73... Rce4+ {[%clk 0:00:10.6]} 74.
Kd5 {[%clk 0:00:19]} 74... Re7 {[%clk 0:00:11.4]} 75. Rhg8+ {[%clk 0:00:16.5]}
75... Kh7 {[%clk 0:00:12.5]} 76. Rg2 {[%clk 0:00:16.3]} 76... Rg7 {[%clk
0:00:11.4]} 77. Rh2+ {[%clk 0:00:16.7]} 77... Kg6 {[%clk 0:00:12.3]} 78. Ra6+
{[%clk 0:00:17.4]} 78... Kf5 {[%clk 0:00:10.5]} 79. Rd6 {[%clk 0:00:14.9]} 79...
Rf1 {[%clk 0:00:10.3]} 80. Rh5+ {[%clk 0:00:13.5]} 80... Kg4 {[%clk 0:00:11]}
81. Re5 {[%clk 0:00:11.5]} 81... Rd1+ {[%clk 0:00:10.4]} 82. Kc5 {[%clk
0:00:10.6]} 82... Rc1+ {[%clk 0:00:10.4]} 83. Kb6 {[%clk 0:00:09.6]} 83... Kf4
{[%clk 0:00:10.1]} 84. Rb5 {[%clk 0:00:08.7]} 84... Rc2 {[%clk 0:00:07.5]} 85.
Rf6+ {[%clk 0:00:08.8]} 85... Ke4 {[%clk 0:00:08]} 86. Rf8 {[%clk 0:00:10.7]}
86... Rg6+ {[%clk 0:00:08.3]} 87. Kb7 {[%clk 0:00:10.7]} 87... Rg7+ {[%clk
0:00:09.5]} 88. Kb6 {[%clk 0:00:11.6]} 88... Rg6+ {[%clk 0:00:10.1]} 89. Kb7
{[%clk 0:00:13]} 89... Rc4 {[%clk 0:00:10.3]} 90. Re8+ {[%clk 0:00:13.2]} 90...
Kd3 {[%clk 0:00:10.9]} 91. Rd8+ {[%clk 0:00:12.9]} 91... Ke3 {[%clk 0:00:11.1]}
92. Rbd5 {[%clk 0:00:13.4]} 92... Rb4+ {[%clk 0:00:11.2]} 93. Kc7 {[%clk
0:00:14.1]} 93... Rc4+ {[%clk 0:00:12.2]} 94. Kb7 {[%clk 0:00:13.2]} 94... Rb4+
{[%clk 0:00:12.7]} 95. Kc7 {[%clk 0:00:14.3]} 95... Rg7+ {[%clk 0:00:12.9]} 96.
R8d7 {[%clk 0:00:14.1]} 96... Rg6 {[%clk 0:00:13.6]} 97. Rd3+ {[%clk 0:00:14.6]}
97... Ke4 {[%clk 0:00:13.9]} 98. Rd1 {[%clk 0:00:14.7]} 98... Rc4+ {[%clk
0:00:14.2]} 99. Kb7 {[%clk 0:00:15.1]} 99... Rb4+ {[%clk 0:00:15]} 100. Kc7
{[%clk 0:00:16.1]} 100... Rc4+ {[%clk 0:00:15.9]} 101. Kb7 {[%clk 0:00:17.2]}
101... Rg2 {[%clk 0:00:09.6]} 102. Re1+ {[%clk 0:00:17.8]} 102... Kf3 {[%clk
0:00:09.7]} 103. Rf7+ {[%clk 0:00:18.8]} 103... Kg3 {[%clk 0:00:10.5]} 104. Re8
{[%clk 0:00:17.7]} 104... Rb2+ {[%clk 0:00:09.7]} 105. Ka8 {[%clk 0:00:18.8]}
105... Ra4+ {[%clk 0:00:10.1]} 106. Ra7 {[%clk 0:00:20]} 106... Rg4 {[%clk
0:00:10.9]} 107. Re3+ {[%clk 0:00:18.6]} 107... Kf2 {[%clk 0:00:11.1]} 108. Re6
{[%clk 0:00:17]} 108... Rg8+ {[%clk 0:00:11.3]} 109. Re8 {[%clk 0:00:10.9]}
109... Rxe8# {[%clk 0:00:11.9]} 0-1